bitfinex-derivatives/quotes_BTCF0:USTF0_20251011
["timestamp","ask_amount","ask_price","bid_price","bid_amount"]
[1760165369420,0.50608215,112130.0,112120.0,0.01318]
[1760165369616,0.52204272,112130.0,112120.0,0.01318]
[1760165370319,0.50608459,112130.0,112120.0,0.01318]
[1760165370520,0.52204272,112130.0,112120.0,0.01318]
[1760165371420,0.55389267,112130.0,112120.0,0.01318]
[1760165371622,0.52204272,112130.0,112120.0,0.01318]
[1760165372316,0.50608468,112130.0,112120.0,0.01318]
[1760165372720,0.55389253,112130.0,112120.0,0.01318]
[1760165374921,0.52204272,112130.0,112120.0,0.01318]
[1760165375422,0.55389221,112130.0,112120.0,0.01318]
[1760165376124,0.52204272,112130.0,112120.0,0.01318]
[1760165376317,0.5538908,112130.0,112120.0,0.01318]
[1760165376517,0.50608295,112130.0,112120.0,0.01318]
[1760165376717,0.5538908,112130.0,112120.0,0.01318]
[1760165377123,0.50608295,112130.0,112120.0,0.03552]
[1760165377717,0.50608295,112130.0,112120.0,0.01318]
[1760165378220,0.47423487,112130.0,112120.0,0.01318]
[1760165378626,0.47423487,112130.0,112120.0,0.03498]
[1760165378825,0.47423487,112130.0,112120.0,0.01318]
[1760165379219,0.47423487,112130.0,112120.0,0.03498]
[1760165379723,0.47423487,112130.0,112120.0,0.01318]
[1760165380323,0.47423487,112130.0,112120.0,0.03458]
[1760165381022,0.11343487,112130.0,112120.0,0.43458]
[1760165381524,0.47423487,112130.0,112120.0,0.43458]
[1760165382322,0.47423487,112130.0,112120.0,0.03458]
[1760165383316,0.47423487,112130.0,112120.0,0.01318]
[1760165384227,0.47423487,112130.0,112120.0,0.03458]
[1760165384621,0.11343487,112130.0,112120.0,0.43458]
[1760165385724,0.09063193,112130.0,112120.0,0.43458]
[1760165386524,0.09063193,112130.0,112120.0,0.01318]
[1760165388225,0.11356434,112130.0,112120.0,0.01318]
[1760165389624,0.09063193,112130.0,112120.0,0.01318]
[1760165390523,0.1135712,112130.0,112120.0,0.01318]
[1760165390829,0.4743712,112130.0,112120.0,0.01318]
[1760165394427,0.4743712,112130.0,112120.0,0.03458]
[1760165394926,0.4743712,112130.0,112120.0,0.01318]
[1760165397027,0.1135712,112130.0,112120.0,0.03458]
[1760165397419,0.4743712,112130.0,112120.0,0.01318]
[1760165398129,0.4743712,112130.0,112120.0,0.03458]
[1760165398330,0.4743712,112130.0,112120.0,0.01318]
[1760165400528,0.4743712,112130.0,112120.0,0.03458]
[1760165401024,0.1135712,112130.0,112120.0,0.43458]
[1760165402522,0.4743712,112130.0,112120.0,0.03458]
[1760165406130,0.47440826,112130.0,112120.0,0.03458]
[1760165408737,0.11360826,112130.0,112120.0,0.03458]
[1760165408935,0.47440826,112130.0,112120.0,0.03458]
[1760165410234,0.47440826,112130.0,112120.0,0.01318]
[1760165411832,0.47440826,112130.0,112120.0,0.03504]
[1760165413436,0.11360826,112130.0,112120.0,0.05504]
[1760165413838,0.02452916,112130.0,112120.0,0.95738626]
[1760165414038,0.02297633,112130.0,112120.0,0.95738626]
[1760165414636,0.3608,112140.0,112130.0,0.1238092]
[1760165414836,0.38380433,112140.0,112130.0,0.2138092]
[1760165415030,0.02300433,112140.0,112130.0,0.62706826]
[1760165415335,0.02300433,112140.0,112130.0,0.9746092]
[1760165415640,0.4498554,112160.0,112150.0,0.1237934]
[1760165415940,0.48169868,112170.0,112160.0,0.03473]
[1760165416134,0.0890506,112170.0,112160.0,0.42553]
[1760165417534,0.0900506,112170.0,112160.0,0.06473]
[1760165417839,0.4518506,112170.0,112160.0,0.06473]
[1760165418834,0.0910506,112170.0,112160.0,0.06473]
[1760165419836,0.4518506,112170.0,112160.0,0.06473]
[1760165420437,0.0910506,112170.0,112160.0,0.06473]
[1760165425334,0.4518506,112170.0,112160.0,0.06473]
[1760165426539,0.4518506,112170.0,112160.0,0.06594662]
[1760165427740,0.4518506,112170.0,112160.0,0.01408662]
[1760165427942,1.28807948,112170.0,112160.0,0.00121662]
[1760165428142,0.0890554,112160.0,112150.0,0.01287]
[1760165428337,0.4498554,112160.0,112150.0,0.02287]
[1760165428539,0.8498554,112160.0,112150.0,0.02287]
[1760165428953,0.87282557,112160.0,112150.0,0.02287]
[1760165429446,0.87382557,112160.0,112150.0,0.02287]
[1760165429650,0.87482557,112160.0,112150.0,0.02287]
[1760165432346,0.87482557,112160.0,112150.0,0.01]
[1760165433545,0.87482557,112160.0,112150.0,0.02287]
[1760165433746,0.87637805,112160.0,112150.0,0.02287]
[1760165435953,1.02437805,112160.0,112150.0,0.02287]
[1760165441260,0.47637805,112160.0,112150.0,0.02287]
[1760165443965,0.47637805,112160.0,112150.0,0.04562]
[1760165444470,0.47637805,112160.0,112150.0,0.44562]
[1760165445162,0.11557805,112160.0,112150.0,0.8954834]
[1760165445762,0.02652265,112160.0,112150.0,0.8954834]
[1760165446560,0.11557805,112160.0,112150.0,0.80642]
[1760165446765,0.11457805,112160.0,112150.0,0.44562]
[1760165447163,0.11357805,112160.0,112150.0,0.44562]
[1760165448765,0.11457805,112160.0,112150.0,0.44562]
[1760165449064,0.11557805,112160.0,112150.0,0.44562]
[1760165451261,0.09260788,112160.0,112150.0,0.5346833]
[1760165451563,0.02530787,112160.0,112150.0,0.8954833]
[1760165452061,0.02530787,112160.0,112150.0,1.2471863]
[1760165453368,0.11336317,112160.0,112150.0,0.758123]
[1760165453566,0.0900553,112160.0,112150.0,0.397323]
[1760165454565,0.0900553,112160.0,112150.0,0.8471863]
[1760165454768,0.0900553,112160.0,112150.0,0.40642]
[1760165454962,0.11285983,112160.0,112150.0,0.38367]
[1760165455169,0.11285983,112160.0,112150.0,0.02287]
[1760165455363,0.11286132,112160.0,112150.0,0.02287]
[1760165455666,0.0910553,112160.0,112150.0,0.02287]
[1760165456269,0.11486137,112160.0,112150.0,0.02287]
[1760165456469,0.11486137,112160.0,112150.0,0.0456]
[1760165459877,0.11486137,112160.0,112150.0,0.02287]
[1760165460174,0.11486137,112160.0,112150.0,0.0456]
[1760165460376,0.11486137,112160.0,112150.0,1.158103]
[1760165460569,0.002,112160.0,112150.0,1.2471655]
[1760165461074,0.0910554,112160.0,112150.0,0.8064]
[1760165461674,0.0910554,112160.0,112150.0,0.4064]
[1760165461976,0.0900554,112160.0,112150.0,0.4064]
[1760165462676,0.0900554,112160.0,112150.0,0.0456]
[1760165463880,0.0910554,112160.0,112150.0,0.8064]
[1760165464275,0.002,112160.0,112150.0,0.8954633]
[1760165465473,0.001,112160.0,112150.0,0.8954633]
[1760165465978,0.0900554,112160.0,112150.0,0.8954633]
[1760165466175,0.0900554,112160.0,112150.0,0.4954633]
[1760165466775,0.0890554,112160.0,112150.0,0.4954633]
[1760165470381,0.0900554,112160.0,112150.0,0.4954633]
[1760165470582,0.0910554,112160.0,112150.0,0.4954633]
[1760165471884,0.0900554,112160.0,112150.0,0.4954633]
[1760165473191,0.0890554,112160.0,112150.0,0.4954633]
[1760165473983,0.0900554,112160.0,112150.0,0.4954633]
[1760165474784,0.0910554,112160.0,112150.0,0.4954633]
[1760165478980,0.0910554,112160.0,112150.0,0.8954633]
[1760165479289,0.002,112160.0,112150.0,0.8954633]
[1760165479689,0.001,112160.0,112150.0,0.8954633]
[1760165480393,0.0890518,112170.0,112160.0,0.1237354]
[1760165480685,0.0890518,112170.0,112160.0,0.5945354]
[1760165481684,0.002,112170.0,112160.0,0.5945354]
[1760165483590,0.0957349,112190.0,112180.0,0.1237195]
[1760165483890,0.12151883,112190.0,112180.0,0.5545195]
[1760165484693,0.12251883,112190.0,112180.0,0.5545195]
[1760165485889,0.12351883,112190.0,112180.0,0.5545195]
[1760165486191,0.12351883,112190.0,112180.0,0.9153195]
[1760165490197,0.12351883,112190.0,112180.0,0.82628]
[1760165490991,0.52351883,112190.0,112180.0,0.82628]
[1760165491191,0.52351883,112190.0,112180.0,0.08345]
[1760165491697,0.52351883,112190.0,112180.0,0.10468]
[1760165493996,0.88431883,112190.0,112180.0,0.01345]
[1760165494703,0.0890395,112180.0,112170.0,0.01345]
[1760165494896,0.47562343,112180.0,112170.0,0.01345]
[1760165495096,0.87562343,112180.0,112170.0,0.01345]
[1760165495296,0.90747151,112180.0,112170.0,0.01345]
[1760165495597,0.0890475,112170.0,112160.0,0.01345]
[1760165495796,0.90747951,112170.0,112160.0,0.01345]
[1760165497100,0.90947951,112170.0,112160.0,0.01345]
[1760165497897,0.0890554,112160.0,112150.0,0.01287]
[1760165498096,0.0890634,112150.0,112140.0,0.01345]
[1760165498290,0.47564733,112150.0,112140.0,0.01345]
[1760165499801,0.47664733,112150.0,112140.0,0.01345]
[1760165500801,0.87664733,112150.0,112140.0,0.01345]
[1760165501298,0.87604901,112150.0,112140.0,0.01345]
[1760165502505,0.47604901,112150.0,112140.0,0.01345]
[1760165503005,0.0890713,112140.0,112130.0,0.01723]
[1760165503214,0.11425691,112140.0,112130.0,0.01723]
[1760165505004,0.0890713,112140.0,112130.0,0.01723]
[1760165505705,0.4498713,112140.0,112130.0,0.01723]
[1760165507505,0.4498713,112140.0,112130.0,0.0385]
[1760165510810,0.4498713,112140.0,112130.0,0.01723]
[1760165511510,0.4498713,112140.0,112130.0,0.0385]
[1760165511915,0.4498713,112140.0,112130.0,0.01723]
[1760165513312,0.47501134,112140.0,112130.0,0.01723]
[1760165514009,0.4498713,112140.0,112130.0,0.01723]
[1760165514211,1.26315339,112140.0,112130.0,0.01723]
[1760165514411,1.28829342,112140.0,112130.0,0.01723]
[1760165514611,0.87501133,112140.0,112130.0,0.01723]
[1760165514811,1.28829342,112140.0,112130.0,0.01723]
[1760165515612,0.87501133,112140.0,112130.0,0.01723]
[1760165519814,0.87501133,112140.0,112130.0,0.0385]
[1760165520211,0.47501133,112140.0,112130.0,0.0385]
[1760165520410,0.11421133,112140.0,112130.0,0.0385]
[1760165521914,0.11421133,112140.0,112130.0,0.01723]
[1760165522916,0.11576404,112140.0,112130.0,0.01723]
[1760165524407,0.14761212,112140.0,112130.0,0.01723]
[1760165524612,0.14761212,112140.0,112130.0,0.0385]
[1760165525014,0.14761212,112140.0,112130.0,0.01723]
[1760165525318,0.11576404,112140.0,112130.0,0.8101]
[1760165531424,0.11562462,112140.0,112130.0,0.8101]
[1760165535923,0.11562462,112140.0,112130.0,0.0493]
[1760165536126,0.47642462,112140.0,112130.0,0.0493]
[1760165537128,0.11562462,112140.0,112130.0,0.0493]
[1760165538931,0.11562462,112140.0,112130.0,0.02723]
[1760165539232,0.11562462,112140.0,112130.0,0.0493]
[1760165539632,0.09062401,112140.0,112130.0,0.0493]
[1760165539833,0.1156181,112140.0,112130.0,0.0493]
[1760165543832,0.1156181,112140.0,112130.0,0.4449]
[1760165544130,0.1156181,112140.0,112130.0,0.4057]
[1760165549435,0.11551828,112140.0,112130.0,0.4057]
[1760165550534,0.11551828,112140.0,112130.0,0.8947777]
[1760165550535,0.02644698,112140.0,112130.0,0.8947777]
[1760165550731,0.11551678,112140.0,112130.0,0.8057]
[1760165551642,0.11551678,112140.0,112130.0,0.8947777]
[1760165554838,0.02744698,112140.0,112130.0,0.8947777]
[1760165555949,0.02844698,112140.0,112130.0,0.8947777]
[1760165557049,0.11751668,112140.0,112130.0,0.8947777]
[1760165559251,0.02844698,112140.0,112130.0,0.8947777]
[1760165560352,0.11751668,112140.0,112130.0,0.8947777]
[1760165561253,0.11751668,112140.0,112130.0,0.8957928]
[1760165562151,0.11751668,112140.0,112130.0,0.4067151]
[1760165563048,0.11751668,112140.0,112130.0,0.0459151]
[1760165565456,0.11751668,112140.0,112130.0,0.1349928]
[1760165565658,0.11751668,112140.0,112130.0,0.4957928]
[1760165566958,0.11751668,112140.0,112130.0,0.4067151]
[1760165573665,0.47831668,112140.0,112130.0,0.0459151]
[1760165576153,0.47831668,112140.0,112130.0,0.0238451]
[1760165576353,0.87831668,112140.0,112130.0,0.0138451]
[1760165576559,0.47831668,112140.0,112130.0,0.0370051]
[1760165576762,0.47831668,112140.0,112130.0,0.0138451]
[1760165578265,0.47831668,112140.0,112130.0,0.0370051]
[1760165579162,0.47831668,112140.0,112130.0,0.0138451]
[1760165581164,0.47831668,112140.0,112130.0,0.0370051]
[1760165582464,0.11751668,112140.0,112130.0,0.0370051]
[1760165582855,0.02844698,112140.0,112130.0,0.0370051]
[1760165583060,0.11751678,112140.0,112130.0,0.1360829]
[1760165584061,0.11751678,112140.0,112130.0,0.5360829]
[1760165585266,0.11751678,112140.0,112130.0,0.4470051]
[1760165590061,0.11751678,112140.0,112130.0,0.0514051]
[1760165592171,0.51751678,112140.0,112130.0,0.0182451]
[1760165592367,0.87831678,112140.0,112130.0,0.0182451]
[1760165593370,0.87831678,112140.0,112130.0,0.0400651]
[1760165593572,0.87831678,112140.0,112130.0,0.0182451]
[1760165594172,0.87831678,112140.0,112130.0,0.0400651]
[1760165595471,0.11751678,112140.0,112130.0,0.0400651]
[1760165595670,0.11751678,112140.0,112130.0,0.1491429]
[1760165595870,0.02844698,112140.0,112130.0,0.5099429]
[1760165596972,0.02844698,112140.0,112130.0,1.26171634]
[1760165597166,0.02689427,112140.0,112130.0,1.26171634]
[1760165597573,0.4498483,112170.0,112160.0,0.03555]
[1760165597772,0.47618633,112170.0,112160.0,0.03555]
[1760165598274,0.47618633,112170.0,112160.0,0.0365651]
[1760165599170,0.47718633,112170.0,112160.0,0.0365651]
[1760165599369,0.47818633,112170.0,112160.0,0.0365651]
[1760165601475,0.47818633,112170.0,112160.0,0.0409651]
[1760165606472,0.11738633,112170.0,112160.0,0.0409651]
[1760165606673,0.02833803,112170.0,112160.0,0.9008191]
[1760165606879,0.11738413,112170.0,112160.0,0.9008191]
[1760165607574,0.02833803,112170.0,112160.0,0.9008191]
[1760165608778,0.11738403,112170.0,112160.0,0.8117651]
[1760165609478,0.11738403,112170.0,112160.0,0.9008191]
[1760165609681,0.11638403,112170.0,112160.0,0.9008191]
[1760165609879,0.11738403,112170.0,112160.0,0.9008191]
[1760165610080,0.091046,112170.0,112160.0,0.9008191]
[1760165611481,0.091046,112170.0,112160.0,0.0509651]
[1760165612075,0.451846,112170.0,112160.0,0.0509651]
[1760165615183,0.47784475,112170.0,112160.0,0.0509651]
[1760165616082,0.47784618,112170.0,112160.0,0.0509651]
[1760165616684,0.11704618,112170.0,112160.0,0.0509651]
[1760165616984,0.47784618,112170.0,112160.0,0.0509651]
[1760165629991,0.47784618,112170.0,112160.0,0.0501152]
[1760165634092,0.47784618,112170.0,112160.0,0.0282952]
[1760165634288,1.29083479,112170.0,112160.0,0.0282952]
[1760165634493,1.32268287,112170.0,112160.0,0.0282952]
[1760165635188,1.47068287,112170.0,112160.0,0.0282952]
[1760165635389,1.47068287,112170.0,112160.0,0.0182952]
[1760165635791,1.32268287,112170.0,112160.0,0.0182952]
[1760165637795,1.33864264,112170.0,112160.0,0.0182952]
[1760165638286,1.37061648,112170.0,112160.0,0.0182952]
[1760165638495,1.32280863,112170.0,112160.0,0.0182952]
[1760165638696,1.37061648,112170.0,112160.0,0.0054151]
[1760165639195,1.32280863,112170.0,112160.0,0.0054151]
[1760165640397,0.90982002,112170.0,112160.0,0.0185851]
[1760165640592,1.32280863,112170.0,112160.0,0.0054151]
[1760165643695,1.32280863,112170.0,112160.0,0.0185851]
[1760165645694,1.47080863,112170.0,112160.0,0.0185851]
[1760165645895,1.47080863,112170.0,112160.0,0.01317]
[1760165646093,0.3125248,112140.0,112130.0,0.03604]
[1760165646299,0.0890699,112140.0,112130.0,0.14044]
[1760165647097,0.089062,112150.0,112140.0,0.1256799]
[1760165647400,0.02560005,112150.0,112140.0,1.43386851]
[1760165647895,0.4508523,112170.0,112160.0,0.1256639]
[1760165648100,0.47662366,112170.0,112160.0,0.2100639]
[1760165648400,0.47562366,112170.0,112160.0,0.6100639]
[1760165649297,0.47662366,112170.0,112160.0,0.52101]
[1760165650200,0.47762366,112170.0,112160.0,0.52101]
[1760165652592,0.47762366,112170.0,112160.0,0.0978]
[1760165652906,0.87762366,112170.0,112160.0,0.0844]
[1760165653400,0.87762366,112170.0,112160.0,0.0978]
[1760165656103,0.47762366,112170.0,112160.0,0.12101]
[1760165659503,0.11682366,112170.0,112160.0,0.52101]
[1760165664806,0.47762366,112170.0,112160.0,0.52101]
[1760165666407,0.47762366,112170.0,112160.0,0.4978]
[1760165666607,0.47762366,112170.0,112160.0,0.52101]
[1760165666797,0.47762366,112170.0,112160.0,0.0844]
[1760165667008,1.32258611,112170.0,112160.0,0.0844]
[1760165669703,1.29061227,112170.0,112160.0,0.0844]
[1760165670505,1.32258611,112170.0,112160.0,0.0844]
[1760165671107,1.32258611,112170.0,112160.0,0.0044]
[1760165672608,0.9095975,112170.0,112160.0,0.0044]
[1760165672813,1.32258611,112170.0,112160.0,0.0044]
[1760165675514,1.33842012,112170.0,112160.0,0.0044]
[1760165675815,1.32259078,112170.0,112160.0,0.0044]
[1760165676112,0.95741002,112170.0,112160.0,0.0044]
[1760165676313,1.37039863,112170.0,112160.0,0.0044]
[1760165676709,0.90960217,112170.0,112160.0,0.0044]
[1760165676909,1.32259078,112170.0,112160.0,0.0044]
[1760165677109,0.0890619,112150.0,112140.0,0.0134]
[1760165677412,0.47563326,112150.0,112140.0,0.0234]
[1760165680209,1.28862187,112150.0,112120.0,0.3608]
[1760165680516,0.0890778,112130.0,112120.0,0.0636]
[1760165680814,0.47564916,112130.0,112120.0,0.0636]
[1760165683416,0.47564916,112130.0,112120.0,0.08516]
[1760165686219,0.11484916,112130.0,112120.0,0.84596]
[1760165686517,0.47564916,112130.0,112120.0,0.48516]
[1760165689924,0.47564916,112130.0,112120.0,0.08516]
[1760165692627,0.47564916,112130.0,112120.0,0.0636]
[1760165697730,0.47564916,112130.0,112120.0,0.0136]
[1760165699427,0.47564916,112130.0,112120.0,0.03516]
[1760165700626,0.47564916,112130.0,112120.0,0.0136]
[1760165701828,0.47564916,112130.0,112120.0,0.03516]
[1760165702031,0.47564916,112130.0,112120.0,0.05516]
[1760165702834,0.11484916,112130.0,112120.0,0.45516]
[1760165706833,0.02577136,112130.0,112120.0,1.25685832]
[1760165707132,0.38657136,112140.0,112120.0,1.25685832]
[1760165707328,0.02577136,112140.0,112130.0,0.03626]
[1760165707528,0.4498653,112150.0,112140.0,0.03626]
[1760165707733,0.47583297,112150.0,112140.0,0.09626]
[1760165709237,0.02596767,112150.0,112140.0,0.49626]
[1760165709442,0.11502957,112150.0,112140.0,0.49626]
[1760165717442,0.47582957,112150.0,112140.0,0.09626]
[1760165717648,0.47582957,112150.0,112140.0,0.01306]
[1760165718449,0.50780808,112150.0,112140.0,0.01306]
[1760165718753,0.47582957,112150.0,112140.0,0.01306]
[1760165719153,0.0890698,112140.0,112130.0,0.01306]
[1760165719453,0.47583747,112140.0,112130.0,0.04306]
[1760165721248,0.47583747,112140.0,112130.0,0.01306]
[1760165721452,0.0890778,112130.0,112120.0,0.0136]
[1760165721652,0.47584547,112130.0,112120.0,0.0436]
[1760165721853,0.47584547,112130.0,112120.0,0.0668]
[1760165724257,0.11504547,112130.0,112120.0,0.4668]
[1760165724554,0.0890778,112130.0,112120.0,0.4668]
[1760165725751,0.1146691,112130.0,112120.0,0.4668]
[1760165734255,0.4754691,112130.0,112120.0,0.4668]
[1760165734558,0.8754691,112130.0,112120.0,0.0436]
[1760165737259,0.8754691,112130.0,112120.0,0.0668]
[1760165737460,0.8754691,112130.0,112120.0,0.0436]
[1760165739058,0.8754691,112130.0,112120.0,0.06479]
[1760165739259,0.8754691,112130.0,112120.0,0.0436]
[1760165739456,0.4754691,112130.0,112120.0,0.06479]
[1760165742168,0.0255913,112130.0,112120.0,0.1538757]
[1760165742365,0.114669,112130.0,112120.0,0.42559]
[1760165754173,0.475469,112130.0,112120.0,0.06479]
[1760165754774,0.475469,112130.0,112120.0,0.0436]
[1760165755476,0.475469,112130.0,112120.0,0.06476]
[1760165755975,0.475469,112130.0,112120.0,0.0436]
[1760165756174,0.475469,112130.0,112120.0,0.06476]
[1760165757574,0.114669,112130.0,112120.0,0.06476]
[1760165757974,0.475469,112130.0,112120.0,0.0436]
[1760165758170,0.475469,112130.0,112120.0,0.06476]
[1760165758671,0.475469,112130.0,112120.0,0.0436]
[1760165758878,0.475469,112130.0,112120.0,0.06476]
[1760165759773,0.475469,112130.0,112120.0,0.0436]
[1760165760174,0.475469,112130.0,112120.0,0.06476]
[1760165760784,0.475469,112130.0,112120.0,0.0436]
[1760165761179,0.875469,112130.0,112120.0,0.0436]
[1760165762288,0.875469,112130.0,112120.0,0.06476]
[1760165762985,0.875469,112130.0,112120.0,0.0436]
[1760165763287,0.875469,112130.0,112120.0,0.06476]
[1760165765585,0.875469,112130.0,112120.0,0.0436]
[1760165772289,0.875469,112130.0,112120.0,0.03]
[1760165772490,0.87444936,112130.0,112120.0,0.04346]
[1760165777592,0.87444936,112130.0,112120.0,0.06501]
[1760165777593,0.47444936,112130.0,112120.0,0.06501]
[1760165778194,0.47444936,112130.0,112120.0,0.04346]
[1760165788702,0.47444936,112130.0,112120.0,0.06501]
[1760165788902,0.47444936,112130.0,112120.0,0.04346]
[1760165790394,0.4498777,112130.0,112120.0,0.04346]
[1760165790595,0.47446264,112130.0,112120.0,0.06501]
[1760165791004,0.47446264,112130.0,112120.0,0.04346]
[1760165792100,0.88764515,112130.0,112120.0,0.04346]
[1760165793400,0.47446264,112130.0,112120.0,0.04346]
[1760165793601,0.88764515,112130.0,112120.0,0.04346]
[1760165795806,0.88764515,112130.0,112120.0,0.06501]
[1760165796012,0.47446264,112130.0,112120.0,0.04346]
[1760165796210,0.47446264,112130.0,112120.0,0.06587]
[1760165798411,0.47455702,112130.0,112120.0,0.06587]
[1760165801915,0.47455702,112130.0,112120.0,0.04346]
[1760165802114,0.47455702,112130.0,112120.0,0.06566]
[1760165802510,0.47455702,112130.0,112120.0,0.04346]
[1760165804915,0.88773953,112130.0,112120.0,0.04347]
[1760165805713,0.47455702,112130.0,112120.0,0.06567]
[1760165805913,0.47455702,112130.0,112120.0,0.04347]
[1760165806618,0.47655702,112130.0,112120.0,0.04347]
[1760165807010,0.47455702,112130.0,112120.0,0.04347]
[1760165807218,0.47655702,112130.0,112120.0,0.04347]
[1760165807821,0.47555702,112130.0,112120.0,0.04347]
[1760165808015,0.47655702,112130.0,112120.0,0.04347]
[1760165812620,0.47555702,112130.0,112120.0,0.04347]
[1760165812821,0.47655702,112130.0,112120.0,0.04347]
[1760165813025,0.47655702,112130.0,112120.0,0.06567]
[1760165813222,0.47655702,112130.0,112120.0,0.04347]
[1760165813622,0.47555702,112130.0,112120.0,0.04347]
[1760165813923,0.47655702,112130.0,112120.0,0.04347]
[1760165814826,0.47655702,112130.0,112120.0,0.06567]
[1760165815125,0.47655702,112130.0,112120.0,0.04347]
[1760165818222,0.47655702,112130.0,112120.0,0.06567]
[1760165818627,0.47655702,112130.0,112120.0,0.04347]
[1760165819026,0.47655702,112130.0,112120.0,0.06567]
[1760165819226,0.47655702,112130.0,112120.0,0.04347]
[1760165822932,0.47655702,112130.0,112120.0,0.03]
[1760165823632,0.47655702,112130.0,112120.0,0.04347]
[1760165828430,0.4518777,112130.0,112120.0,0.04347]
[1760165828734,0.47953468,112130.0,112120.0,0.04347]
[1760165829835,0.11873468,112130.0,112120.0,0.04347]
[1760165830038,0.47953468,112130.0,112120.0,0.04347]
[1760165830837,0.51151319,112130.0,112120.0,0.04347]
[1760165832134,0.51151319,112130.0,112120.0,0.06511]
[1760165832439,0.51151319,112130.0,112120.0,0.04347]
[1760165833641,0.51151319,112130.0,112120.0,0.04334]
[1760165835140,0.51151319,112130.0,112120.0,0.01334]
[1760165840737,0.15071319,112130.0,112120.0,0.01334]
[1760165840939,0.51151319,112130.0,112120.0,0.01334]
[1760165844942,0.47953468,112130.0,112120.0,0.01334]
[1760165846744,0.47953468,112130.0,112120.0,0.03498]
[1760165846945,0.47953468,112130.0,112120.0,0.01334]
[1760165847143,0.51151319,112130.0,112120.0,0.01334]
[1760165847442,0.47953468,112130.0,112120.0,0.01334]
[1760165847742,0.0890835,112120.0,112110.0,0.0134]
[1760165847937,0.11674048,112120.0,112110.0,0.14504]
[1760165848943,0.11874048,112120.0,112110.0,0.14504]
[1760165853546,0.47954048,112120.0,112110.0,0.14504]
[1760165857548,0.47954048,112120.0,112110.0,0.1234]
[1760165857747,0.47954048,112120.0,112110.0,0.14517]
[1760165858550,0.47954048,112120.0,112110.0,0.1234]
[1760165859246,0.47954048,112120.0,112110.0,0.0134]
[1760165861945,0.51151899,112120.0,112110.0,0.0134]
[1760165863150,0.47954048,112120.0,112110.0,0.0134]
[1760165863650,0.47954048,112120.0,112110.0,0.03517]
[1760165863851,0.47954048,112120.0,112110.0,0.0134]
[1760165864950,0.51151899,112120.0,112110.0,0.0134]
[1760165865449,0.51151899,112120.0,112110.0,0.03501]
[1760165865650,0.47954048,112120.0,112110.0,0.03501]
[1760165865846,0.47954048,112120.0,112110.0,0.0134]
[1760165867053,0.51151899,112120.0,112110.0,0.03501]
[1760165867248,0.47954048,112120.0,112110.0,0.03501]
[1760165867451,0.47954048,112120.0,112110.0,0.0134]
[1760165869450,0.47972347,112120.0,112110.0,0.0134]
[1760165870050,0.47972347,112120.0,112110.0,0.03501]
[1760165870753,0.47972347,112120.0,112110.0,0.0134]
[1760165871854,0.47972347,112120.0,112110.0,0.03501]
[1760165872753,0.47972347,112120.0,112110.0,0.0134]
[1760165875254,0.47972347,112120.0,112110.0,0.03501]
[1760165876154,0.47972347,112120.0,112110.0,0.0134]
[1760165877056,0.47972347,112120.0,112110.0,0.03501]
[1760165879757,0.47972347,112120.0,112110.0,0.0134]
[1760165879954,0.47972347,112120.0,112110.0,0.03501]
[1760165883251,0.47972347,112120.0,112110.0,0.43501]
[1760165883454,0.11892347,112120.0,112110.0,0.44501]
[1760165883661,0.47972347,112120.0,112110.0,0.44501]
[1760165884051,0.47972347,112120.0,112110.0,0.0234]
[1760165884256,0.47972347,112120.0,112110.0,0.04501]
[1760165884460,0.47972347,112120.0,112110.0,0.0234]
[1760165885059,0.47972347,112120.0,112110.0,0.04501]
[1760165885659,0.47948484,112120.0,112110.0,0.04501]
[1760165890159,0.11868484,112120.0,112110.0,0.44501]
[1760165891262,0.47948484,112120.0,112110.0,0.44501]
[1760165900767,0.47848484,112120.0,112110.0,0.44501]
[1760165901071,0.47948484,112120.0,112110.0,0.44501]
[1760165901567,0.47948484,112120.0,112110.0,0.4234]
[1760165901772,0.47948484,112120.0,112110.0,0.0234]
[1760165903876,0.47948484,112120.0,112110.0,0.04487]
[1760165913680,0.47948484,112120.0,112110.0,0.0234]
[1760165913880,0.47948484,112120.0,112110.0,0.04653]
[1760165914082,0.47948484,112120.0,112110.0,0.0234]
[1760165914283,0.47948484,112120.0,112110.0,0.04653]
[1760165922088,0.11868484,112120.0,112110.0,0.04653]
[1760165922578,0.11868484,112120.0,112110.0,0.45993488]
[1760165923088,0.11768484,112120.0,112110.0,0.45993488]
[1760165924480,0.02860134,112120.0,112110.0,0.94902638]
[1760165924788,0.11768484,112120.0,112110.0,0.94902638]
[1760165924985,0.02760134,112120.0,112110.0,1.30982638]
[1760165925188,0.02860134,112120.0,112110.0,1.30982638]
[1760165925588,0.3608,112140.0,112130.0,0.1245356]
[1760165925891,0.3608,112140.0,112130.0,0.61794048]
[1760165926480,0.4498635,112150.0,112140.0,0.03546]
[1760165926686,0.4498635,112150.0,112140.0,0.11546]
[1760165928793,0.4508635,112150.0,112140.0,0.11546]
[1760165928994,0.0890677,112140.0,112130.0,0.01327]
[1760165929195,0.4498677,112140.0,112130.0,0.01327]
[1760165929588,0.8498677,112140.0,112130.0,0.01327]
[1760165931694,0.0890756,112130.0,112120.0,0.01327]
[1760165931994,0.4488756,112130.0,112120.0,0.03327]
[1760165932189,0.4488756,112130.0,112120.0,0.05546]
[1760165932597,0.4488756,112130.0,112120.0,0.03327]
[1760165932990,0.4488756,112130.0,112120.0,0.05546]
[1760165933191,0.4488756,112130.0,112120.0,0.05646]
[1760165935597,0.4488756,112130.0,112120.0,0.03646]
[1760165937696,0.47491934,112130.0,112120.0,0.03646]
[1760165941201,0.47591934,112130.0,112120.0,0.44646]
[1760165941403,0.02604374,112130.0,112120.0,0.8963435]
[1760165941598,0.0890707,112140.0,112120.0,0.8963435]
[1760165941797,0.11510796,112140.0,112130.0,0.1245356]
[1760165941998,0.11510796,112140.0,112130.0,0.48638343]
[1760165942298,0.3608,112150.0,112140.0,0.1245277]
[1760165942497,0.02591879,112150.0,112140.0,0.6153277]
[1760165942696,0.4498557,112160.0,112150.0,0.03546]
[1760165942896,0.47565208,112160.0,112150.0,0.04546]
[1760165945504,0.47665208,112160.0,112150.0,0.04546]
[1760165946804,0.47565208,112160.0,112150.0,0.04546]
[1760165947003,0.47665208,112160.0,112150.0,0.04546]
[1760165951908,0.87665208,112160.0,112150.0,0.01327]
[1760165953307,0.87665208,112160.0,112150.0,0.03527]
[1760165956008,0.87665208,112160.0,112150.0,0.01327]
[1760165956913,0.87665208,112160.0,112150.0,0.03527]